bitfinex-derivatives/quotes_SOLF0:USTF0_20250808
["timestamp","ask_amount","ask_price","bid_price","bid_amount"]
[1754647815712,3.15,176.47,176.44,3.2]
[1754647816005,3.19043181,176.5,176.43,5.6668]
[1754647816205,3.15,176.46,176.45,3.2]
[1754647819318,3.15,176.46,176.43,3.2]
[1754647821919,3.15,176.46,176.4,8.85823181]
[1754647822116,3.15,176.46,176.42,3.2]
[1754647822317,6.34043181,176.46,176.39,3.2]
[1754647822522,3.15,176.45,176.39,3.2]
[1754647825723,3.15,176.45,176.39,5.6682]
[1754647825916,3.15,176.45,176.4,3.2]
[1754647828028,3.15,176.45,176.39,5.668]
[1754647828227,3.15,176.45,176.41,3.2]
[1754647830830,3.19043181,176.44,176.39,3.2]
[1754647831024,3.15,176.43,176.36,3.19043181]
[1754647831225,3.15,176.41,176.37,3.2]
[1754647833230,3.15,176.41,176.37,8.8688]
[1754647833427,3.15,176.41,176.38,3.2]
[1754647833628,3.15,176.41,176.39,3.2]
[1754647834030,3.15,176.41,176.27,246.3436]
[1754647834031,3.19043181,176.4,176.35,3.2]
[1754647834326,3.15,176.39,176.36,3.2]
[1754647835027,3.15,176.39,176.37,3.2]
[1754647837437,3.18,176.39,176.34,5.6697]
[1754647837638,3.18,176.39,176.35,3.02]
[1754647838541,3.18,176.39,176.36,3.02]
[1754647839438,3.18,176.39,176.35,5.6694]
[1754647839641,3.18,176.39,176.37,3.02]
[1754647841133,3.18,176.39,176.33,3.02]
[1754647841338,3.19043181,176.38,176.3,3.19043181]
[1754647841538,3.18,176.37,176.31,3.02]
[1754647841733,3.19043181,176.36,176.32,3.02]
[1754647841939,3.18,176.35,176.32,3.02]
[1754647842248,3.18,176.35,176.31,3.02]
[1754647842746,3.18,176.35,176.27,3.19043181]
[1754647842948,3.18,176.35,176.32,3.02]
[1754647843444,3.19043181,176.34,176.3,3.02]
[1754647843645,3.18,176.33,176.31,3.02]
[1754647843842,3.18,176.32,176.31,3.02]
[1754647844542,6.37043181,176.34,176.31,8.6908]
[1754647844841,15.8566247,176.4,176.31,8.6908]
[1754647844842,3.18,176.33,176.32,3.02]
[1754647850747,3.18,176.35,176.32,3.02]
[1754647851043,3.18,176.35,176.32,8.6902]
[1754647851244,3.18,176.35,176.32,3.02]
[1754647851450,3.18,176.39,176.26,3.02]
[1754647851649,3.18,176.39,176.32,6.21043181]
[1754647851846,3.19043181,176.33,176.29,3.02]
[1754647852050,3.19043181,176.33,176.24,3.19043181]
[1754647852051,3.18,176.32,176.25,3.02]
[1754647852348,3.18,176.32,176.28,3.02]
[1754647852855,3.18,176.32,176.26,3.19043181]
[1754647853051,3.18,176.32,176.27,3.02]
[1754647853251,3.18,176.32,176.27,5.6718]
[1754647853445,3.18,176.32,176.26,3.19043181]
[1754647853650,3.18,176.32,176.27,3.02]
[1754647854456,3.18,176.32,176.3,5.671]
[1754647854656,3.18,176.32,176.31,3.02]
[1754647855251,3.19043181,176.35,176.3,8.691]
[1754647855455,3.18,176.31,176.3,8.691]
[1754647855653,3.18,176.34,176.32,3.02]
[1754647856452,3.18,176.34,176.29,5.6713]
[1754647856756,3.18,176.34,176.31,3.02]
[1754647857753,3.18,176.34,176.32,3.02]
[1754647858057,3.18,176.33,176.32,3.02]
[1754647860263,3.18,176.33,176.3,5.6709]
[1754647860464,3.18,176.33,176.31,3.02]
[1754647860862,3.18,176.33,176.29,5.6713]
[1754647861059,3.18,176.33,176.29,3.02]
[1754647862367,6.37043181,176.33,176.29,3.02]
[1754647862567,3.18,176.32,176.29,3.02]
[1754647864068,3.18,176.32,176.28,3.02]
[1754647864368,3.18,176.32,176.27,8.6919]
[1754647864567,3.18,176.32,176.28,3.02]
[1754647864964,3.18,176.32,176.3,3.02]
[1754647865557,3.18,176.32,176.28,5.6716]
[1754647865762,3.18,176.32,176.28,3.02]
[1754647866572,3.18,176.32,176.26,3.14]
[1754647866868,15.8566247,176.4,176.28,3.14]
[1754647866869,3.27,176.34,176.28,3.14]
[1754647867063,3.27,176.37,176.31,3.19043181]
[1754647867266,15.8566247,176.4,176.32,3.14]
[1754647867473,15.8566247,176.4,176.33,5.6701]
[1754647867671,3.27,176.35,176.34,3.14]
[1754647870578,3.27,176.35,176.32,5.6703]
[1754647870777,3.27,176.34,176.33,3.14]
[1754647870973,6.46043181,176.38,176.33,8.8101]
[1754647871280,3.27,176.39,176.34,3.14]
[1754647871474,3.27,176.39,176.36,5.669]
[1754647871780,3.27,176.39,176.38,3.14]
[1754647871977,3.27,176.39,176.36,3.14]
[1754647875680,3.27,176.39,176.37,3.14]
[1754647876380,3.27,176.39,176.33,3.19043181]
[1754647876582,3.27,176.39,176.34,3.14]
[1754647877382,3.27,176.39,176.34,8.8098]
[1754647877582,3.27,176.39,176.35,3.14]
[1754647878185,3.27,176.39,176.34,5.6698]
[1754647878390,3.27,176.39,176.36,3.14]
[1754647880186,3.27,176.39,176.33,8.86043181]
[1754647880380,3.27,176.39,176.34,3.14]
[1754647880582,3.27,176.38,176.34,3.14]
[1754647880778,3.27,176.38,176.35,3.14]
[1754647881082,3.27,176.38,176.36,3.14]
[1754647881892,3.27,176.38,176.33,5.67]
[1754647882086,3.27,176.38,176.35,3.14]
[1754647882785,3.27,176.38,176.36,3.14]
[1754647883087,3.27,176.36,176.35,3.14]
[1754647883692,3.27,176.36,176.35,8.8095]
[1754647883884,3.19043181,176.39,176.34,3.14]
[1754647883885,3.27,176.39,176.34,3.14]
[1754647884290,3.27,176.39,176.38,3.14]
[1754647887487,3.19043181,176.44,176.37,3.19043181]
[1754647887680,3.27,176.43,176.38,3.14]
[1754647888589,3.27,176.43,176.38,8.8085]
[1754647888780,3.27,176.43,176.39,3.14]
[1754647889489,3.19043181,176.42,176.35,3.19043181]
[1754647889688,3.27,176.41,176.37,3.14]
[1754647889988,3.27,176.41,176.36,3.14]
[1754647890383,3.27,176.41,176.37,3.14]
[1754647890888,3.27,176.41,176.36,8.8091]
[1754647891189,3.27,176.41,176.37,3.14]
[1754647891490,3.27,176.41,176.38,3.14]
[1754647891680,3.27,176.41,176.35,3.14]
[1754647891886,3.27,176.39,176.31,3.19043181]
[1754647892086,3.27,176.39,176.32,3.14]
[1754647892284,3.27,176.37,176.33,5.6701]
[1754647892486,3.27,176.37,176.34,3.14]
[1754647892887,3.27,176.37,176.35,3.14]
[1754647894989,3.27,176.37,176.34,3.14]
[1754647895386,3.27,176.37,176.33,5.67]
[1754647895387,3.27,176.37,176.32,8.8103]
[1754647895583,3.27,176.37,176.32,3.14]
[1754647895783,3.27,176.38,176.33,3.19043181]
[1754647895983,3.19043181,176.43,176.35,3.19043181]
[1754647896189,3.23,176.42,176.36,3.1]
[1754647896589,3.23,176.42,176.37,5.6687]
[1754647896893,3.23,176.4,176.37,5.6687]
[1754647898193,3.23,176.4,176.36,3.1]
[1754647898589,3.19043181,176.49,176.32,3.1]
[1754647898590,3.23,176.38,176.32,3.1]
[1754647899296,3.23,176.38,176.35,5.6693]
[1754647899593,3.23,176.38,176.35,8.7693]
[1754647899794,3.23,176.38,176.35,5.6693]
[1754647899986,3.23,176.37,176.36,5.6691]
[1754647900189,3.23,176.4,176.36,3.1]
[1754647900592,3.23,176.4,176.39,8.7682]
[1754647901499,3.23,176.4,176.39,3.1]
[1754647905897,3.19043181,176.43,176.38,3.1]
[1754647905898,3.23,176.42,176.38,3.1]
[1754647906904,3.23,176.42,176.38,8.7685]
[1754647907399,3.23,176.42,176.39,3.1]
[1754647910399,3.23,176.42,176.39,8.7681]
[1754647910601,3.23,176.42,176.4,3.1]
[1754647910999,3.23,176.41,176.4,8.7677]
[1754647911906,3.23,176.43,176.4,8.7677]
[1754647912199,3.23,176.43,176.41,3.1]
[1754647912608,3.23,176.43,176.4,5.6677]
[1754647912609,3.23,176.44,176.4,3.1]
[1754647912907,13.22923709,176.45,176.42,3.1]
[1754647913606,3.23,176.44,176.41,5.6673]
[1754647913802,3.23,176.44,176.41,3.1]
[1754647914002,3.23,176.44,176.42,3.1]
[1754647915810,3.23,176.43,176.42,3.1]
[1754647916201,3.23,176.43,176.42,8.7672]
[1754647916500,3.23,176.43,176.42,3.1]
[1754647917407,16.45923709,176.45,176.42,3.1]
[1754647917611,13.22923709,176.45,176.42,3.1]
[1754647918108,13.22923709,176.45,176.44,5.6666]
[1754647918307,13.22923709,176.45,176.44,8.7666]
[1754647918607,3.23,176.44,176.43,5.6668]
[1754647918907,3.23,176.44,176.43,8.7668]
[1754647920298,3.23,176.44,176.42,5.6671]
[1754647920504,3.23,176.44,176.4,3.1]
[1754647920701,3.23,176.44,176.41,3.1]
[1754647921502,13.22923709,176.45,176.4,3.1]
[1754647921813,3.23,176.43,176.4,3.1]
[1754647922308,3.23,176.43,176.42,5.6671]
[1754647922610,3.23,176.43,176.42,8.7671]
[1754647924311,3.23,176.43,176.4,3.1]
[1754647924508,3.23,176.43,176.38,3.1]
[1754647924809,3.23,176.43,176.36,3.1]
[1754647925112,3.23,176.43,176.4,8.7677]
[1754647925810,3.23,176.43,176.41,5.6675]
[1754647926009,3.26,176.42,176.41,5.6675]
[1754647927312,3.26,176.42,176.41,8.9275]
[1754647927814,3.26,176.42,176.41,5.6675]
[1754647928411,3.26,176.42,176.41,8.9275]
[1754647928812,3.26,176.42,176.4,5.6678]
[1754647929709,3.26,176.43,176.4,5.6678]
[1754647930916,3.26,176.41,176.38,3.26]
[1754647931110,3.26,176.41,176.37,3.26]
[1754647931309,13.22923709,176.45,176.44,5.6666]
[1754647931613,3.26,176.53,176.45,3.26]
[1754647932510,8.924,176.53,176.49,5.6648]
[1754647932815,5.664,176.53,176.49,5.6648]
[1754647933006,3.26,176.51,176.5,3.26]
[1754647933204,3.19043181,176.54,176.49,5.6648]
[1754647933205,3.26,176.5,176.49,3.26]
[1754647933410,3.26,176.5,176.48,5.6652]
[1754647933612,3.26,176.49,176.48,8.9252]
[1754647934610,3.26,176.49,176.48,3.26]
[1754647935217,3.26,176.53,176.49,5.6647]
[1754647935407,3.26,176.53,176.49,8.9247]
[1754647935611,3.26,176.52,176.49,8.9247]
[1754647935806,3.26,176.52,176.49,3.26]
[1754647936212,3.26,176.53,176.47,3.26]
[1754647937418,3.19043181,176.62,176.53,3.26]
[1754647937619,3.26,176.6,176.56,3.26]
[1754647937821,3.26,176.6,176.59,5.6618]
[1754647938016,3.26,176.6,176.59,3.26]
[1754647938515,3.26,176.6,176.57,3.26]
[1754647938713,3.26,176.59,176.58,3.26]
[1754647939716,3.26,176.61,176.55,3.19043181]
[1754647939913,3.26,176.6,176.57,3.26]
[1754647940812,3.26,176.6,176.54,3.26]
[1754647941023,3.26,176.58,176.54,3.26]
[1754647941616,3.26,176.58,176.5,3.19043181]
[1754647941825,3.26,176.57,176.56,3.26]
[1754647942020,3.26,176.59,176.56,3.26]
[1754647942221,3.19043181,176.62,176.55,8.9229]
[1754647942424,3.26,176.61,176.55,8.9229]
[1754647942624,3.26,176.61,176.55,3.26]
[1754647942823,3.26,176.61,176.57,5.6621]
[1754647943019,3.26,176.61,176.59,3.26]
[1754647943214,3.26,176.6,176.59,3.26]
[1754647943720,3.26,176.6,176.57,3.26]
[1754647944428,5.6615,176.6,176.55,5.6629]
[1754647944728,3.26,176.59,176.56,3.26]
[1754647945631,3.26,176.59,176.54,5.6633]
[1754647945926,3.26,176.59,176.54,8.9233]
[1754647946125,5.6623,176.58,176.54,3.26]
[1754647946330,3.26,176.57,176.54,3.26]
[1754647946524,3.26,176.56,176.54,3.26]
[1754647946720,3.26,176.55,176.54,3.26]
[1754647946920,3.19043181,176.67,176.51,3.26]
[1754647946921,3.19043181,176.56,176.51,3.26]
[1754647947124,3.26,176.53,176.43,11.3337]
[1754647947428,3.26,176.58,176.52,3.26]
[1754647947621,3.26,176.58,176.56,3.26]
[1754647948628,3.19043181,176.61,176.56,3.26]
[1754647948629,3.26,176.57,176.56,3.26]
[1754647948829,3.26,176.56,176.55,3.26]
[1754647949230,3.26,176.58,176.55,3.26]
[1754647949429,3.26,176.57,176.56,3.26]
[1754647950427,3.26,176.57,176.52,3.26]
[1754647950627,3.26,176.56,176.52,3.26]
[1754647950831,3.26,176.56,176.55,3.26]
[1754647951422,3.26,176.56,176.55,8.9231]
[1754647951825,3.26,176.56,176.55,3.26]
[1754647952025,3.26,176.56,176.44,3.26]
[1754647952230,3.26,176.56,176.51,3.26]
[1754647952535,3.26,176.54,176.52,5.6638]
[1754647952831,3.26,176.54,176.53,3.26]
[1754647953032,3.26,176.66,176.51,3.26]
[1754647953230,3.19043181,176.67,176.53,3.26]
[1754647953231,3.26,176.58,176.53,3.26]
[1754647953625,3.26,176.58,176.56,5.6627]
[1754647953825,3.26,176.58,176.53,3.26]
[1754647954024,3.26,176.58,176.54,3.26]
[1754647954528,3.19043181,176.59,176.51,3.26]
[1754647954529,3.26,176.57,176.51,3.26]
[1754647954743,6.45043181,176.57,176.51,3.26]
[1754647955031,6.45043181,176.59,176.51,3.26]
[1754647955334,6.45043181,176.59,176.38,135.04594456]
[1754647955335,3.19043181,176.69,176.59,3.26]
[1754647955527,3.26,176.68,176.62,3.19043181]
[1754647955726,3.26,176.68,176.64,3.26]
[1754647956127,3.26,176.68,176.62,3.26]
[1754647956326,5.6595,176.66,176.62,3.26]
[1754647956533,5.6595,176.66,176.61,5.6609]
[1754647956733,3.07,176.64,176.63,3.26]
[1754647958127,3.07,176.64,176.58,3.19043181]
[1754647958332,3.19043181,176.63,176.59,3.26]
[1754647958530,3.07,176.62,176.59,3.26]
[1754647958735,8.7308,176.62,176.59,3.26]
[1754647958934,3.07,176.61,176.59,3.26]
[1754647959137,3.07,176.6,176.5,3.26]
[1754647959335,3.19043181,176.61,176.56,5.6625]
[1754647959336,8.85173181,176.61,176.56,5.6625]
[1754647959531,3.07,176.59,176.58,3.26]
[1754647960633,8.85163181,176.61,176.58,3.26]
[1754647960833,3.07,176.61,176.56,3.19043181]
[1754647961139,3.07,176.61,176.57,3.26]
[1754647961333,3.07,176.61,176.58,5.662]
[1754647961534,3.07,176.61,176.6,3.26]
[1754647961730,3.19043181,176.63,176.57,3.26]
[1754647961938,3.07,176.59,176.58,3.26]
[1754647963842,3.19043181,176.61,176.56,3.26]
[1754647964038,8.7315,176.6,176.57,3.26]
[1754647964234,3.07,176.58,176.57,3.26]
[1754647965638,3.07,176.57,176.56,3.26]
[1754647966743,3.07,176.57,176.55,3.26]
[1754647968341,3.07,176.57,176.56,3.26]
[1754647968545,3.19043181,176.59,176.53,3.26]
[1754647968743,3.07,176.56,176.53,3.26]
[1754647969337,3.19043181,176.57,176.5,3.19043181]
[1754647969542,3.07,176.55,176.51,3.26]
[1754647969944,3.07,176.55,176.53,3.26]
[1754647970145,3.07,176.55,176.54,3.26]
[1754647972247,8.7331,176.55,176.54,3.26]
[1754647973048,3.07,176.55,176.54,3.26]
[1754647973447,3.07,176.63,176.54,3.26]
[1754647973640,3.07,176.63,176.42,17.03]
[1754647973641,3.07,176.55,176.51,3.26]
[1754647973845,3.07,176.54,176.51,8.9242]
[1754647974050,3.07,176.55,176.52,3.26]
[1754647974249,3.19043181,176.54,176.47,3.26]
[1754647974448,3.19043181,176.52,176.49,5.6649]
[1754647974646,3.07,176.51,176.5,3.26]
[1754647976450,3.07,176.51,176.48,8.9251]
[1754647976653,3.07,176.5,176.49,3.26]
[1754647977153,5.6645,176.51,176.48,3.26]
[1754647977354,3.07,176.51,176.45,3.26]
[1754647978250,3.07,176.51,176.38,99.32701044]
[1754647978251,6.26043181,176.57,176.48,6.45043181]
[1754647978552,6.26043181,176.57,176.4,20.22043181]
[1754647978553,6.26043181,176.57,176.5,3.19043181]
[1754647978748,3.19043181,176.57,176.52,5.6638]
[1754647978956,8.7327,176.56,176.53,3.26]
[1754647979747,8.7327,176.56,176.5,3.19043181]
[1754647979953,8.7327,176.56,176.54,3.26]
[1754647980449,8.7327,176.56,176.5,3.19043181]
[1754647980450,8.7331,176.55,176.52,8.9238]
[1754647980657,3.07,176.54,176.53,3.26]
[1754647981460,3.19043181,176.57,176.52,3.26]
[1754647981655,3.07,176.55,176.53,3.26]
[1754647981856,3.07,176.54,176.53,3.26]
[1754647982954,3.19043181,176.57,176.5,3.19043181]
[1754647983159,3.07,176.55,176.54,3.26]
[1754647983956,8.7331,176.55,176.54,3.26]
[1754647984658,3.07,176.55,176.54,3.26]
[1754647985055,3.07,176.55,176.51,5.6642]
[1754647985256,3.07,176.54,176.52,3.26]
[1754647985457,3.07,176.54,176.53,3.26]
[1754647989462,3.19043181,176.55,176.48,3.19043181]
[1754647989664,3.0,176.54,176.51,3.24]
[1754647990058,3.19043181,176.53,176.48,3.24]
[1754647990361,3.0,176.52,176.48,3.24]
[1754647990560,5.6646,176.51,176.49,3.24]
[1754647990765,3.19043181,176.58,176.5,3.24]
[1754647991071,3.0,176.53,176.5,3.24]
[1754647991253,3.0,176.54,176.47,3.19043181]
[1754647991458,3.0,176.54,176.48,3.24]
[1754647992365,5.6642,176.52,176.48,8.9052]
[1754647992563,8.6642,176.52,176.49,3.24]
[1754647992764,3.0,176.51,176.5,3.24]
[1754647992961,3.0,176.51,176.38,116.35701044]
[1754647992962,3.0,176.52,176.45,3.19043181]
[1754647993160,3.0,176.5,176.46,3.24]
[1754647993359,5.6652,176.49,176.46,3.24]
[1754647993865,3.0,176.47,176.46,3.24]
[1754647994768,3.0,176.48,176.46,5.6659]
[1754647994964,3.0,176.48,176.47,3.24]
[1754647995865,8.6653,176.48,176.47,3.24]
[1754647997165,3.0,176.47,176.46,3.24]
[1754647998366,8.6656,176.47,176.46,3.24]
[1754647999963,5.666,176.46,176.43,3.19043181]
[1754648000162,3.0,176.47,176.44,3.24]
[1754648000362,3.0,176.49,176.44,3.24]
[1754648000569,5.6657,176.47,176.44,3.24]
[1754648000967,8.6657,176.47,176.44,3.24]
[1754648002471,5.6659,176.46,176.44,3.24]
[1754648002771,3.0,176.5,176.45,3.19043181]
[1754648002964,3.0,176.52,176.48,3.24]
[1754648003370,3.0,176.51,176.48,3.24]
[1754648003569,5.665,176.5,176.48,3.24]
[1754648003771,3.0,176.54,176.46,3.24]
[1754648004070,3.0,176.54,176.46,6.43043181]
[1754648004259,5.6652,176.49,176.47,3.24]
[1754648005474,5.6653,176.48,176.47,3.24]
[1754648007376,3.0,176.5,176.47,3.24]
[1754648007574,3.0,176.49,176.47,3.24]
[1754648008174,3.19043181,176.56,176.48,3.19043181]
[1754648008374,3.0,176.55,176.49,3.24]
[1754648008876,5.6636,176.54,176.49,3.24]
[1754648009072,3.0,176.53,176.5,3.24]
[1754648010369,3.0,176.52,176.44,5.6663]
[1754648010577,3.0,176.52,176.49,3.24]
[1754648011478,5.664,176.52,176.49,3.24]
[1754648011665,3.0,176.51,176.45,3.24]
[1754648012071,3.0,176.49,176.46,3.24]
[1754648013179,3.0,176.47,176.46,3.24]
[1754648025094,8.6656,176.47,176.46,3.24]
[1754648026303,5.6656,176.47,176.4,3.19043181]
[1754648027295,5.666,176.46,176.4,3.19043181]
[1754648030602,5.6663,176.45,176.4,3.19043181]
[1754648031105,5.6661,176.46,176.4,3.19043181]
[1754648031803,5.6665,176.45,176.4,3.19043181]
[1754648032495,5.6666,176.44,176.4,3.19043181]
[1754648032700,3.19043181,176.49,176.4,3.19043181]
[1754648033804,5.6668,176.44,176.4,3.19043181]
[1754648035206,5.667,176.43,176.4,3.19043181]
[1754648037408,5.6673,176.42,176.4,3.19043181]
[1754648040110,5.6675,176.41,176.4,3.19043181]
[1754648040812,5.6682,176.39,176.38,3.19043181]
[1754648041511,5.6689,176.37,176.36,3.19043181]
[1754648042008,3.19043181,176.44,176.36,3.19043181]
[1754648042204,5.6687,176.38,176.36,3.19043181]
[1754648042514,3.19043181,176.44,176.36,3.19043181]
[1754648043309,5.6687,176.38,176.36,3.19043181]
[1754648043510,3.19043181,176.44,176.36,3.19043181]
[1754648043911,5.6688,176.37,176.36,3.19043181]
[1754648046415,8.6488,176.37,176.36,6.43043181]
[1754648047412,5.51512968,176.37,176.36,6.43043181]
[1754648048113,2.98,176.4,176.37,3.24]
[1754648048416,2.98,176.41,176.4,3.24]
[1754648048608,8.6478,176.41,176.4,3.24]
[1754648050716,2.98,176.41,176.4,3.24]
[1754648050916,2.98,176.49,176.39,3.19043181]
[1754648051215,2.98,176.49,176.42,3.19043181]
[1754648051511,8.6469,176.43,176.42,3.19043181]
[1754648051715,5.6669,176.43,176.42,6.43043181]
[1754648051912,2.98,176.45,176.43,3.24]
[1754648052112,2.98,176.45,176.44,3.19043181]
[1754648052416,2.98,176.45,176.44,6.43043181]
[1754648052615,8.6463,176.45,176.44,6.43043181]
[1754648053318,5.6661,176.46,176.45,3.24]
[1754648054121,3.19043181,176.56,176.46,3.19043181]
[1754648054318,3.19043181,176.56,176.43,5.6667]
[1754648054319,3.19043181,176.56,176.48,3.19043181]
[1754648056014,3.19043181,176.67,176.52,3.19043181]
[1754648056218,2.98,176.59,176.52,3.19043181]
[1754648056719,3.19043181,176.67,176.5,3.19043181]
[1754648056720,2.98,176.57,176.5,3.19043181]
[1754648057618,2.98,176.55,176.48,3.19043181]
[1754648061417,2.98,176.53,176.46,3.19043181]
[1754648061818,2.98,176.51,176.46,3.19043181]
[1754648062324,2.98,176.51,176.47,3.24]
[1754648063415,2.98,176.51,176.48,3.24]
[1754648063922,2.98,176.51,176.46,6.43043181]
[1754648064119,2.98,176.51,176.47,3.24]
[1754648064924,2.98,176.51,176.46,3.24]
[1754648065126,2.98,176.51,176.47,3.24]
[1754648067922,6.17043181,176.51,176.45,3.24]
[1754648068123,2.98,176.5,176.45,3.24]
[1754648068927,2.98,176.5,176.46,3.24]
[1754648069322,2.98,176.5,176.45,3.24]
[1754648069721,2.98,176.48,176.44,3.24]
[1754648070830,2.98,176.48,176.42,8.85753181]
[1754648071129,2.98,176.48,176.44,3.24]
[1754648072426,2.98,176.48,176.44,8.9065]
[1754648072627,2.98,176.48,176.45,3.24]
[1754648072827,2.98,176.48,176.46,3.24]
[1754648073828,2.98,176.48,176.35,246.3385]
[1754648073829,3.19043181,176.47,176.37,3.24]
[1754648074019,2.98,176.44,176.36,6.43043181]
[1754648074223,2.98,176.44,176.36,3.19043181]
[1754648074431,2.98,176.44,176.37,3.24]
[1754648074630,2.98,176.44,176.39,3.24]
[1754648075426,2.98,176.44,176.42,5.667]
[1754648075629,2.98,176.44,176.43,3.24]
[1754648075930,3.26,176.52,176.47,5.6653]
[1754648076134,3.26,176.52,176.49,3.29]
[1754648077228,3.26,176.52,176.5,3.29]
[1754648078827,3.26,176.52,176.49,3.19043181]
[1754648079022,3.26,176.52,176.5,3.29]
[1754648079430,3.26,176.52,176.51,3.29]
[1754648080932,3.26,176.52,176.51,8.9543]
[1754648084342,3.26,176.56,176.53,3.29]
[1754648084538,3.26,176.56,176.54,3.29]
[1754648085639,3.26,176.56,176.5,3.29]
[1754648086039,3.26,176.56,176.51,5.6642]
[1754648086240,3.26,176.56,176.51,8.9542]
[1754648086434,3.26,176.56,176.52,3.29]
[1754648086635,3.26,176.56,176.52,8.9538]
[1754648087932,3.26,176.56,176.53,3.29]
[1754648088135,3.26,176.56,176.52,5.6638]
[1754648088334,3.19043181,176.55,176.5,5.6645]
[1754648088540,3.26,176.54,176.49,3.29]
[1754648089238,3.26,176.54,176.49,8.9548]
[1754648089435,3.26,176.54,176.5,3.29]
[1754648090737,3.26,176.52,176.48,8.9552]
[1754648091435,3.26,176.52,176.47,5.6655]
[1754648091642,3.26,176.5,176.44,3.29]
[1754648092035,3.19043181,176.51,176.44,3.29]
[1754648092240,6.45043181,176.51,176.45,3.19043181]
[1754648092541,3.26,176.5,176.46,3.29]
[1754648093338,3.26,176.49,176.48,8.9551]
[1754648094442,3.26,176.49,176.48,3.29]
[1754648095143,3.26,176.49,176.48,8.9553]
[1754648096139,3.26,176.49,176.48,3.29]
[1754648097143,3.26,176.49,176.48,8.9553]
[1754648098640,3.26,176.49,176.47,5.6655]
[1754648098837,3.26,176.49,176.47,8.9555]
[1754648099739,3.19043181,176.58,176.45,3.29]
[1754648099940,3.19043181,176.51,176.45,3.29]
[1754648100136,3.26,176.51,176.45,6.48043181]
[1754648100341,3.26,176.55,176.49,3.19043181]
[1754648100538,3.26,176.55,176.51,3.19043181]
[1754648100738,3.26,176.54,176.52,3.29]
[1754648101144,3.26,176.54,176.53,8.9535]
[1754648102042,3.26,176.56,176.55,5.663]
[1754648102242,3.26,176.56,176.55,8.953]
[1754648103045,3.19043181,176.58,176.56,5.6625]
[1754648103245,3.26,176.57,176.56,8.9525]
[1754648103842,3.26,176.57,176.56,3.29]
[1754648106146,3.19,176.58,176.56,3.29]
[1754648106351,3.19,176.57,176.53,3.19043181]
[1754648106648,3.19,176.59,176.51,3.19043181]
[1754648106842,3.19,176.59,176.52,3.25]
[1754648107042,3.19,176.59,176.55,3.25]